bitfinex-derivatives/quotes_ETHF0:USTF0_20250404
["timestamp","ask_amount","ask_price","bid_price","bid_amount"]
[1743731628004,1.11487798,1808.1,1808.0,3.29791]
[1743731628406,1.11487798,1808.1,1808.0,2.1913]
[1743731628905,1.11487798,1808.1,1808.0,3.29791]
[1743731629098,1.11487798,1808.1,1808.0,2.1913]
[1743731630197,1.11487798,1808.1,1808.0,3.29791]
[1743731634809,1.11487798,1808.1,1808.0,2.1913]
[1743731635304,1.10661,1808.0,1807.9,0.7268]
[1743731635604,1.10661,1808.0,1807.9,3.27235]
[1743731635806,2.55891,1808.0,1807.9,3.27235]
[1743731636709,2.55891,1808.0,1807.9,2.1657]
[1743731637104,1.10667,1807.9,1807.8,0.7522]
[1743731637305,1.10667,1807.9,1807.7,2.1646]
[1743731637306,1.10673,1807.8,1807.7,2.1646]
[1743731637510,1.10673,1807.8,1807.7,3.27139]
[1743731637903,4.21906,1807.9,1807.6,3.2078]
[1743731638200,1.10679,1807.8,1807.7,2.59286]
[1743731638400,1.10679,1807.8,1807.7,4.03156]
[1743731638809,2.56739,1807.8,1807.7,4.03156]
[1743731641312,1.10679,1807.8,1807.7,4.03156]
[1743731641609,4.31446,1808.0,1807.9,1.10667]
[1743731641815,1.11488798,1808.1,1808.0,1.10661]
[1743731642506,1.10661,1808.0,1807.9,2.53191]
[1743731642813,1.11488798,1808.1,1808.0,1.10661]
[1743731643015,1.11488798,1808.1,1808.0,2.59301]
[1743731644814,1.11483798,1808.1,1808.0,2.59301]
[1743731646211,0.00828798,1808.1,1808.0,2.59301]
[1743731646408,1.11483798,1808.1,1808.0,2.59301]
[1743731647809,0.00828798,1808.1,1808.0,2.59301]
[1743731648507,2.1879,1808.5,1808.3,1.10637]
[1743731648508,1.10638,1808.4,1808.3,1.10637]
[1743731649310,1.10638,1808.4,1808.3,1.81437]
[1743731649512,3.99817,1808.5,1808.4,1.10637]
[1743731649815,4.00645798,1808.5,1808.4,1.10637]
[1743731650716,4.00645798,1808.5,1808.3,1.81443]
[1743731650717,1.10637,1808.4,1808.3,1.81443]
[1743731650913,2.59577,1808.4,1808.3,1.81443]
[1743731651118,5.80357,1808.4,1808.3,1.81443]
[1743731651818,4.6972,1808.4,1808.3,1.81443]
[1743731652011,2.59577,1808.4,1808.3,1.81443]
[1743731652913,1.41488798,1808.5,1808.3,1.81443]
[1743731653114,0.71218798,1808.5,1808.4,1.10637]
[1743731653422,1.11464798,1808.5,1808.4,1.10637]
[1743731654415,0.00828798,1808.5,1808.4,1.10637]
[1743731654918,1.11458798,1808.5,1808.4,1.10637]
[1743731655115,0.00828798,1808.5,1808.4,1.10637]
[1743731655321,1.11458798,1808.5,1808.4,1.10637]
[1743731656515,1.11465798,1808.5,1808.4,1.10637]
[1743731656918,2.60805798,1808.5,1808.4,1.10637]
[1743731657217,0.00828798,1808.5,1808.4,1.10637]
[1743731658527,1.11458798,1808.5,1808.4,1.10637]
[1743731658823,0.00828798,1808.5,1808.4,1.10637]
[1743731659225,1.11458798,1808.5,1808.4,1.10637]
[1743731659723,0.00828798,1808.5,1808.4,1.10637]
[1743731660116,1.11458798,1808.5,1808.4,1.82077]
[1743731660516,0.00828798,1808.5,1808.4,1.82077]
[1743731660923,1.11458798,1808.5,1808.4,3.30627]
[1743731661626,1.11458798,1808.5,1808.4,6.51407]
[1743731662317,1.11458798,1808.5,1808.4,3.30627]
[1743731663415,0.00828798,1808.5,1808.4,3.30627]
[1743731664016,1.11458798,1808.5,1808.4,3.30627]
[1743731665026,1.11458798,1808.5,1808.4,1.10637]
[1743731665322,3.30458798,1808.5,1808.4,1.10637]
[1743731666119,3.30458798,1808.5,1808.4,2.62497]
[1743731667226,3.30458798,1808.5,1808.4,1.5186]
[1743731667926,2.60708798,1808.5,1808.4,2.62497]
[1743731669525,1.11458798,1808.5,1808.4,2.62497]
[1743731670127,0.00828798,1808.5,1808.4,2.62497]
[1743731671321,1.10641,1808.4,1808.2,3.21608798]
[1743731671525,1.10643,1808.3,1808.2,0.00828798]
[1743731672029,2.49133,1808.3,1808.2,0.00828798]
[1743731673028,2.49133,1808.3,1808.2,1.11477798]
[1743731673531,2.49133,1808.3,1808.2,0.00828798]
[1743731680737,2.49133,1808.3,1808.2,1.11477798]
[1743731680938,2.49133,1808.3,1808.2,0.00828798]
[1743731681541,2.49133,1808.3,1808.2,1.11477798]
[1743731682243,2.49133,1808.3,1808.2,0.00828798]
[1743731682441,2.49133,1808.3,1808.2,1.11477798]
[1743731682637,1.10643,1808.3,1808.2,1.11477798]
[1743731682846,1.84113,1808.4,1808.3,1.10643]
[1743731683033,3.32303,1808.4,1808.3,2.61903]
[1743731683236,2.58833,1808.4,1808.3,2.61903]
[1743731683436,1.86794798,1808.5,1808.4,1.10637]
[1743731683633,0.00828798,1808.5,1808.4,2.55407]
[1743731684144,0.00828798,1808.5,1808.4,8.26187]
[1743731686245,0.00828798,1808.5,1808.4,11.92987]
[1743731689148,0.00828798,1808.5,1808.4,9.42987]
[1743731697647,0.00828798,1808.5,1808.4,2.55407]
[1743731697848,1.10643,1808.3,1808.2,0.00828798]
[1743731698048,4.31423,1808.3,1808.2,0.00828798]
[1743731698244,4.31423,1808.3,1808.2,1.11477798]
[1743731698645,5.80693,1808.3,1808.2,1.11477798]
[1743731698853,5.80693,1808.3,1808.2,0.00828798]
[1743731699954,5.80693,1808.3,1808.2,1.11477798]
[1743731700156,5.80693,1808.3,1808.2,0.00828798]
[1743731700953,5.80693,1808.3,1808.2,1.11477798]
[1743731701353,5.80693,1808.3,1808.2,0.00828798]
[1743731702154,5.80693,1808.3,1808.2,1.11477798]
[1743731702753,2.55199,1808.4,1808.3,1.10643]
[1743731702954,1.79699,1808.4,1808.3,3.37783]
[1743731703154,6.58972798,1808.5,1808.4,1.10637]
[1743731703358,6.58972798,1808.5,1808.4,2.62327]
[1743731703756,0.00828798,1808.5,1808.4,2.62327]
[1743731704254,1.11458798,1808.5,1808.4,2.62327]
[1743731704659,0.00828798,1808.5,1808.4,2.62327]
[1743731705059,1.11458798,1808.5,1808.4,2.62327]
[1743731705257,0.00828798,1808.5,1808.4,2.62327]
[1743731705753,1.11458798,1808.5,1808.4,2.62327]
[1743731705957,0.00828798,1808.5,1808.4,2.62327]
[1743731706161,1.10637,1808.4,1808.3,2.60208]
[1743731706355,1.10637,1808.4,1808.3,0.7412]
[1743731706550,1.10643,1808.3,1808.2,2.56024798]
[1743731706758,1.10643,1808.3,1808.2,3.99474798]
[1743731707155,2.48873,1808.3,1808.2,3.99474798]
[1743731707856,3.20613,1808.3,1808.2,2.56024798]
[1743731708464,6.41393,1808.3,1808.2,0.00828798]
[1743731709160,8.91393,1808.3,1808.2,0.00828798]
[1743731711163,10.08093,1808.3,1808.2,0.00828798]
[1743731712556,6.87313,1808.3,1808.2,1.11477798]
[1743731712860,10.08093,1808.3,1808.2,1.11477798]
[1743731713367,10.08093,1808.3,1808.2,0.00828798]
[1743731713661,10.08093,1808.3,1808.2,1.11477798]
[1743731713856,10.08093,1808.3,1808.2,0.00828798]
[1743731714058,10.08093,1808.3,1808.2,1.11477798]
[1743731715363,10.08093,1808.3,1808.2,0.00828798]
[1743731717264,6.41393,1808.3,1808.2,0.00828798]
[1743731721070,6.41393,1808.3,1808.2,2.63617798]
[1743731721264,6.41393,1808.3,1808.2,1.52968798]
[1743731721660,3.21608798,1808.5,1808.2,1.52968798]
[1743731721865,3.21608798,1808.5,1808.3,1.10638]
[1743731722170,1.10641,1808.4,1808.3,1.10638]
[1743731722970,1.10643,1808.3,1808.2,1.83432798]
[1743731724059,1.10642,1808.4,1808.3,1.1064]
[1743731724472,1.10643,1808.3,1808.2,0.72788798]
[1743731725771,5.81213,1808.3,1808.2,0.00828798]
[1743731726466,5.81213,1808.3,1807.7,11.94473]
[1743731726467,1.1068,1807.7,1807.5,9.1778]
[1743731726675,1.10692,1807.5,1807.4,1.10693]
[1743731726974,1.10689,1807.6,1807.5,1.10691]
[1743731727269,5.97506,1807.6,1807.1,1.10712]
[1743731727571,2.2464,1807.7,1806.7,2.76837]
[1743731727572,1.10716,1807.1,1806.8,5.97]
[1743731727767,1.10716,1807.1,1807.0,1.10719]
[1743731728072,1.10716,1807.1,1806.9,1.79632]
[1743731728274,1.10716,1807.1,1807.0,1.10722]
[1743731728571,4.31494,1807.2,1807.0,1.10722]
[1743731728774,4.6969,1807.2,1807.0,1.10722]
[1743731729566,1.10716,1807.1,1807.0,1.10722]
[1743731729871,1.10716,1807.1,1806.9,0.6891]
[1743731730273,4.6969,1807.2,1807.0,1.1072]
[1743731730667,1.10716,1807.1,1807.0,1.1072]
[1743731730863,4.6969,1807.2,1806.9,1.79634]
[1743731731063,1.10722,1807.0,1806.9,0.6891]
[1743731731265,1.10728,1806.9,1806.8,0.00828798]
[1743731732670,4.31508,1806.9,1806.8,0.00828798]
[1743731733464,5.00748,1806.9,1806.8,0.00828798]
[1743731736580,1.10747,1806.6,1806.5,0.6959]
[1743731736881,1.10747,1806.6,1806.5,1.80343]
[1743731737678,3.2078,1806.7,1806.5,0.6959]
[1743731737876,1.10747,1806.6,1806.5,1.80338]
[1743731738882,4.6802,1806.7,1806.5,0.6959]
[1743731739183,1.10747,1806.6,1806.5,1.80339]
[1743731740474,4.6802,1806.7,1806.5,0.6959]
[1743731740674,1.10747,1806.6,1806.5,1.8034]
[1743731741684,1.10747,1806.6,1806.5,1.80339]
[1743731741886,1.10747,1806.6,1806.5,3.28539]
[1743731743185,2.57986,1806.7,1806.6,1.10747]
[1743731743387,1.10746,1806.7,1806.6,2.58947]
[1743731745583,2.6006,1806.8,1806.7,1.10741]
[1743731745882,2.6006,1806.8,1806.7,1.4923]
[1743731747185,2.6006,1806.8,1806.7,2.59971]
[1743731747385,2.6006,1806.8,1806.7,1.10741]
[1743731751482,1.10741,1806.7,1806.6,1.5266]
[1743731752085,1.10741,1806.7,1806.6,2.63403]
[1743731752286,1.4932,1806.8,1806.7,1.10741]
[1743731752287,1.1074,1806.8,1806.7,1.10741]
[1743731752493,1.10741,1806.7,1806.6,1.10743]
[1743731754287,2.76838,1806.8,1806.5,1.80339]
[1743731754288,1.10747,1806.6,1806.5,1.80339]
[1743731754488,1.10746,1806.7,1806.6,1.10744]
[1743731755688,1.4586,1806.9,1806.5,0.6959]
[1743731755893,1.10734,1806.9,1806.8,1.10729]
[1743731757089,3.2078,1806.9,1806.5,0.6959]
[1743731757289,1.10747,1806.6,1806.5,0.6959]
[1743731757498,1.10747,1806.6,1806.5,1.80343]
[1743731757888,2.57877,1806.6,1806.5,1.80343]
[1743731758391,2.57877,1806.6,1806.5,0.6959]
[1743731758587,1.10753,1806.5,1806.4,0.70758798]
[1743731758791,1.10753,1806.5,1806.4,1.81513798]
[1743731759191,1.10753,1806.5,1806.4,0.00828798]
[1743731759393,4.31533,1806.5,1806.4,0.00828798]
[1743731759895,7.98333,1806.5,1806.4,0.00828798]
[1743731760293,1.10777,1806.1,1806.0,1.4703]
[1743731760491,1.10784,1806.0,1805.9,4.31564]
[1743731760797,1.10774,1806.2,1806.1,1.10771]
[1743731761296,1.10774,1806.2,1805.8,2.76989]
[1743731761297,1.10792,1805.9,1805.8,1.10792]
[1743731761494,1.10796,1805.8,1805.7,0.7224]
[1743731761790,1.10796,1805.8,1805.7,0.00828798]
[1743731762189,2.51676,1805.8,1805.7,0.00828798]
[1743731762796,1.4088,1805.8,1805.7,0.00828798]
[1743731762991,4.31574,1805.9,1805.7,0.00828798]
[1743731763291,1.10779,1806.1,1806.0,1.10782]
[1743731763497,4.77575,1806.2,1806.0,1.10779]
[1743731763897,1.10777,1806.1,1805.9,2.55105]
[1743731764098,1.10779,1806.1,1805.9,2.55105]
[1743731764589,1.10772,1806.2,1806.0,1.10784]
[1743731764789,1.10774,1806.2,1806.0,1.10778]
[1743731765200,11.15904798,1806.3,1805.9,1.4432]
[1743731765397,1.10781,1806.1,1805.9,2.55105]
[1743731765600,1.10784,1806.0,1805.9,1.4432]
[1743731765899,1.10784,1806.0,1805.9,0.709]
[1743731766498,2.57234,1806.0,1805.9,0.709]
[1743731766694,3.2078,1806.1,1805.9,1.8169]
[1743731766994,1.10784,1806.0,1805.9,0.709]
[1743731767395,1.10784,1806.0,1805.9,1.8169]
[1743731767587,1.10784,1806.0,1805.9,0.709]
[1743731767791,2.57232,1806.1,1805.9,1.81684]
[1743731767998,2.57232,1806.1,1805.9,0.709]
[1743731767999,2.57234,1806.1,1805.9,0.709]
[1743731768192,1.4645,1806.1,1805.9,1.81686]
[1743731768493,1.10777,1806.1,1806.0,1.10781]
[1743731768704,1.10774,1806.2,1806.1,1.10777]
[1743731769291,1.10774,1806.2,1806.0,0.7353]
[1743731769699,1.10774,1806.2,1806.1,1.10777]
[1743731769892,8.38208798,1806.3,1806.0,0.7353]
[1743731770093,2.61297798,1806.3,1806.2,1.10771]
[1743731770297,1.10772,1806.2,1806.1,1.10772]
[1743731770600,1.10777,1806.1,1806.0,1.84309]
[1743731770999,1.10777,1806.1,1806.0,0.7353]
[1743731771298,1.10784,1806.0,1805.9,3.33426]
[1743731771894,1.497,1806.2,1805.9,2.2264]
[1743731772200,2.50851,1806.1,1806.0,1.10782]
[1743731772401,1.10784,1806.0,1805.9,3.33425]
[1743731772692,1.10796,1805.8,1805.7,1.11627798]
[1743731772894,1.10796,1805.8,1805.7,1.51498798]
[1743731773101,3.60796,1805.8,1805.7,0.00828798]
[1743731773294,2.77014,1805.7,1805.3,1.10824]
[1743731773596,4.4103,1805.6,1805.2,2.77082]
[1743731773793,4.4103,1805.6,1805.5,1.10814]
[1743731773794,3.674,1805.6,1805.5,1.10814]
[1743731773994,4.6085,1805.7,1805.6,1.10808]
[1743731774187,4.6085,1805.7,1805.5,1.1081]
[1743731774399,5.71657,1805.7,1805.6,2.61478]
[1743731774997,1.10812,1805.6,1805.4,1.10815]
[1743731775195,1.3957,1805.6,1805.3,3.96585]
[1743731775395,1.10818,1805.5,1805.4,1.1082]
[1743731775595,2.50383,1805.6,1805.4,1.3943]
[1743731775790,2.50383,1805.6,1805.4,2.50246]
[1743731776001,1.10814,1805.5,1805.4,2.50246]
[1743731776296,1.3957,1805.5,1805.4,2.50246]
[1743731776603,3.2078,1805.7,1805.6,1.10808]
[1743731776896,1.10808,1805.6,1805.5,1.3943]
[1743731777102,4.31585,1805.7,1805.5,1.3943]
[1743731777402,4.31585,1805.7,1805.5,2.50241]
[1743731777603,3.2078,1805.7,1805.6,1.10808]
[1743731777900,1.10802,1805.7,1805.6,1.4584]
[1743731778099,1.10811,1805.6,1805.4,1.10816]
[1743731778300,2.61047,1805.7,1805.5,2.56654]
[1743731778505,2.61047,1805.7,1805.6,1.4584]
[1743731779804,3.2078,1805.8,1805.6,2.56647]
[1743731780005,1.10802,1805.7,1805.6,1.4584]
[1743731780611,1.10802,1805.7,1805.6,2.56646]
[1743731780908,1.10802,1805.7,1805.6,2.56648]
[1743731781106,1.10802,1805.7,1805.6,1.4584]
[1743731781306,1.1082,1805.5,1805.3,2.57153]
[1743731781506,1.467,1805.7,1805.4,1.4645]
[1743731781806,1.10814,1805.5,1805.4,2.5727]
[1743731782003,1.10814,1805.5,1805.4,1.4645]
[1743731782198,1.1082,1805.4,1805.3,2.57157]
[1743731782401,2.5752,1805.4,1805.3,1.4633]
[1743731782602,2.5752,1805.4,1805.3,2.57157]
[1743731782801,2.5752,1805.4,1805.3,4.03607]
[1743731783109,2.5752,1805.4,1805.3,2.9278]
[1743731783309,2.5752,1805.4,1805.3,1.4645]
[1743731783903,1.10816,1805.5,1805.4,1.10816]
[1743731784408,1.1082,1805.5,1805.4,1.10818]
[1743731784608,1.10814,1805.5,1805.4,2.63555]
[1743731784807,5.8039,1805.6,1805.5,1.10814]
[1743731785108,4.3159,1805.6,1805.5,3.32544]
[1743731785306,3.2078,1805.6,1805.5,3.32544]
[1743731786211,4.31588,1805.6,1805.5,2.2173]
[1743731786406,4.6958,1805.6,1805.5,2.2173]
[1743731786599,3.69,1806.0,1805.7,1.10798]
[1743731786803,1.10799,1805.8,1805.7,1.10798]
[1743731787703,4.6215,1805.9,1805.6,0.7344]
[1743731788399,1.10802,1805.7,1805.6,0.7344]
[1743731788601,2.52171,1805.8,1805.6,0.7344]
[1743731788801,2.52171,1805.8,1805.7,1.10802]
[1743731789705,1.10789,1806.0,1805.9,1.10787]
[1743731789912,1.10786,1806.0,1805.9,1.10784]
[1743731790413,1.10792,1805.9,1805.8,1.10791]
[1743731794010,1.10792,1805.9,1805.6,3.50449]
[1743731794011,1.108,1805.8,1805.7,1.10799]
[1743731794812,5.78075,1805.9,1805.8,1.10796]
[1743731795513,7.43729,1806.1,1805.6,3.50453]
[1743731795811,1.10788,1806.0,1805.9,1.10786]
[1743731796113,1.10793,1805.9,1805.8,1.10791]
[1743731797114,8.90221,1806.1,1805.7,2.76999]
[1743731797413,1.10793,1805.9,1805.8,1.10792]
[1743731798503,2.61639,1806.0,1805.9,1.1079]
[1743731799217,1.5085,1806.0,1805.9,1.1079]
[1743731799519,1.84538,1806.1,1806.0,1.10784]
[1743731799815,3.9454,1806.1,1805.8,2.76979]
[1743731800015,1.10787,1806.0,1805.9,2.49724]
[1743731800412,1.10787,1806.0,1805.9,0.6947]
[1743731800705,1.4493,1806.0,1805.5,3.2078]
[1743731800911,1.10806,1805.7,1805.6,1.10804]
[1743731801113,1.10811,1805.6,1805.5,1.10809]
[1743731801414,6.8858,1805.7,1805.1,3.678]
[1743731801613,6.8858,1805.7,1804.9,3.2078]
[1743731801614,1.10839,1805.1,1805.0,1.4313]
[1743731801808,1.10839,1805.1,1805.0,1.5184]
[1743731802007,1.10839,1805.1,1804.6,3.2078]
[1743731802008,5.97878,1805.1,1804.6,3.2078]
[1743731802208,1.10868,1804.7,1804.6,3.2078]
[1743731802413,5.97939,1804.7,1804.3,1.10887]
[1743731802616,1.4585,1804.6,1804.5,1.10876]
[1743731802815,7.6504,1805.0,1804.4,1.408]
[1743731803021,1.4585,1805.1,1804.9,1.10847]
[1743731803212,1.4585,1805.1,1804.7,2.1229]
[1743731803412,3.2078,1805.0,1804.7,2.1229]
[1743731803910,2.56704,1804.9,1804.7,3.2315]
[1743731804106,1.4585,1804.9,1804.7,1.408]
[1743731804312,3.2078,1804.8,1804.5,7.07874]
[1743731804611,1.1087,1804.6,1804.4,1.10882]
[1743731804811,1.4585,1804.7,1804.3,4.6158]
[1743731805317,3.2078,1804.6,1804.4,1.4154]
[1743731805513,1.10879,1804.5,1804.3,3.2078]
[1743731805716,5.2156,1804.5,1804.1,11.91502612]
[1743731806012,1.10905,1804.1,1803.8,26.93076531]
[1743731806225,1.5046,1804.0,1803.8,1.4154]
[1743731806615,3.2078,1804.6,1803.8,16.8202]
[1743731806818,1.10874,1804.6,1804.4,1.10881]
[1743731807113,3.2078,1804.8,1804.3,1.10883]
[1743731807114,1.10877,1804.5,1804.3,1.10883]
[1743731807306,1.5046,1804.5,1804.2,3.2078]
[1743731807508,1.5046,1804.5,1804.2,1.4154]
[1743731807815,2.62171186,1804.5,1804.0,2.77265]
[1743731808017,4.05141186,1804.5,1804.3,1.10886]
[1743731808320,1.10883,1804.4,1804.2,1.10889]
[1743731808620,2.50122,1804.4,1804.3,1.4902]
[1743731808812,2.50122,1804.4,1804.3,2.59908]
[1743731808813,1.3924,1804.4,1804.3,2.59908]
[1743731809008,2.50123,1804.4,1804.1,3.2078]
[1743731809213,1.10888,1804.3,1804.2,2.59911]
[1743731809418,1.10888,1804.3,1804.2,1.4902]
[1743731809613,11.10927,1804.4,1803.9,7.29878]
[1743731809921,3.2078,1804.1,1803.6,3.2078]
[1743731810109,1.10919,1803.8,1803.4,3.9641]
[1743731810309,1.10919,1803.8,1802.5,9.807]
[1743731810310,2.77307,1803.8,1802.5,9.807]
[1743731810515,6.6194,1804.0,1803.1,1.4902]
[1743731810516,1.10941,1803.5,1803.1,1.4902]
[1743731810716,4.95626,1803.7,1803.5,1.10937]
[1743731810911,1.3816,1803.6,1803.5,1.10937]
[1743731811226,3.2078,1804.0,1803.9,1.10913]
[1743731811412,1.10902,1804.1,1803.8,1.10915]
[1743731811612,1.38991186,1804.1,1803.8,1.10914]
[1743731811917,1.38991186,1804.1,1803.7,3.2078]
[1743731812124,2.49894186,1804.1,1803.8,2.59225]
[1743731812323,1.10913,1803.9,1803.6,1.83217]
[1743731812519,0.00831186,1804.1,1804.0,1.10906]
[1743731812726,1.10909,1804.0,1803.7,2.59233]
[1743731812919,2.49079,1803.9,1803.6,1.83219]
[1743731813125,1.10927,1803.7,1803.5,7.4531]
[1743731813318,1.10933,1803.6,1803.2,5.3718]
[1743731813524,3.2078,1803.4,1803.1,2.5927]
[1743731813733,1.3816,1803.3,1803.0,1.10963]
[1743731813921,1.3816,1803.3,1802.9,4.6416]
[1743731814226,9.85074,1803.2,1802.6,1.10989]
[1743731814421,1.10983,1802.8,1802.5,4.31775]
[1743731814620,1.4125,1802.7,1802.6,1.10993]
[1743731815219,3.2078,1802.9,1802.1,9.1778]
[1743731815524,0.00831186,1803.0,1802.9,1.10974]
[1743731816122,0.00831186,1803.0,1802.9,4.31754]
[1743731816321,0.00831186,1803.0,1802.9,1.10974]
[1743731817022,0.00831186,1803.0,1802.4,3.2078]
[1743731817225,1.50211186,1803.0,1802.9,1.10974]
[1743731817420,0.00831186,1803.0,1802.9,1.10974]
[1743731817620,0.00831186,1803.0,1802.9,4.31754]
[1743731818025,0.00831186,1803.0,1802.9,1.10974]
[1743731818426,1.11800186,1803.0,1802.8,2.62839]
[1743731818627,1.11800186,1803.0,1802.8,1.5186]
[1743731818829,1.10988,1802.7,1802.5,1.10997]
[1743731819126,1.10995,1802.6,1802.4,1.11001]
[1743731819327,4.7016,1802.6,1802.2,1.11012]
[1743731819528,5.81157,1802.6,1802.3,1.11011]
[1743731819830,1.11007,1802.4,1802.2,1.5186]
[1743731820025,3.971,1802.4,1802.0,1.11025]
[1743731820329,1.3854,1802.3,1802.0,3.2078]
[1743731820529,1.3854,1802.3,1801.9,1.11032]
[1743731820724,1.3854,1802.3,1801.8,2.77601]
[1743731820920,3.2078,1802.7,1802.2,5.9832]
[1743731821125,0.00831186,1803.0,1802.9,1.10974]
[1743731822027,0.00831186,1803.0,1802.9,2.51614]
[1743731822527,0.00831186,1803.0,1802.9,5.72394]
[1743731822932,1.10945,1803.4,1802.9,5.72394]
[1743731823127,3.977,1803.5,1802.8,0.00831186]
[1743731823128,5.9817,1803.2,1802.8,0.00831186]
[1743731823328,1.10974,1802.9,1802.8,0.00831186]
[1743731823625,3.60974,1802.9,1802.8,0.00831186]
[1743731823830,5.07874,1802.9,1802.8,0.00831186]
[1743731824030,2.77479,1802.7,1802.3,2.8823]
[1743731824232,12.13533,1802.6,1802.1,2.49762]
[1743731824428,12.13533,1802.6,1802.0,3.2078]
[1743731824429,3.2078,1802.4,1802.0,3.2078]
[1743731824632,1.1102,1802.2,1802.0,2.49766]
[1743731824835,1.469,1802.1,1801.6,0.17007486]
[1743731825027,1.11041,1801.9,1801.7,1.11048]
[1743731825326,4.01231186,1802.0,1801.6,1.55747486]
[1743731825527,0.00831186,1802.0,1801.9,4.31816]
[1743731825735,1.469,1802.6,1802.0,2.77574]
[1743731825936,1.469,1802.4,1802.1,4.5952]
[1743731826124,4.24415,1802.4,1801.9,1.11032]
[1743731826325,1.11031,1802.0,1801.8,1.11037]
[1743731826528,1.4083,1801.9,1801.8,1.11037]
[1743731826721,5.12228,1802.1,1801.8,1.11037]
[1743731826722,0.00831186,1802.0,1801.8,2.77605]
[1743731826935,0.00831186,1802.0,1801.9,5.04016]
[1743731827233,1.11042,1801.8,1801.7,0.00831186]
[1743731827730,3.2078,1801.8,1801.7,1.11879186]
[1743731827928,3.2078,1801.8,1801.7,0.00831186]
[1743731827929,1.11042,1801.8,1801.7,0.00831186]
[1743731828133,2.51872,1801.8,1801.7,0.00831186]
[1743731828427,5.72652,1801.8,1801.7,0.00831186]
[1743731828628,1.11048,1801.7,1801.6,0.16176486]
[1743731828827,1.11048,1801.7,1800.6,3.9427]
[1743731828828,2.77682,1801.3,1800.6,3.9427]
[1743731829034,3.2078,1801.6,1801.2,3.2078]
[1743731829227,0.00831186,1802.0,1801.5,2.77651]
[1743731829431,1.1104,1801.9,1801.5,0.6975]
[1743731829632,1.11044,1801.8,1801.6,1.11052]
[1743731829829,2.49686,1801.8,1801.5,1.11054]
[1743731830033,2.49687,1801.8,1801.3,2.77681]
[1743731830229,2.49687,1801.8,1801.5,1.11056]
[1743731830230,1.11049,1801.7,1801.5,1.11056]
[1743731830431,1.11064,1801.5,1801.3,1.11071]
[1743731830735,5.4734,1801.4,1800.9,0.6975]
[1743731830923,3.2078,1801.3,1800.5,8.76362]
[1743731831124,3.2078,1800.8,1800.3,3.2078]
[1743731831324,3.2078,1800.4,1799.7,3.2078]
[1743731831531,1.3864,1800.3,1800.1,1.11144]
[1743731831731,1.11144,1800.2,1799.9,1.11157]
[1743731831930,1.3864,1800.1,1799.8,3.2078]
[1743731832127,4.195,1800.0,1799.6,3.2078]
[1743731832337,1.11191,1799.4,1799.2,8.70722612]
[1743731832527,3.2078,1799.8,1799.3,3.2078]
[1743731832729,3.2078,1800.0,1799.4,2.77976]
[1743731833029,1.4822,1800.0,1799.4,3.2078]
[1743731833232,1.11168,1799.8,1799.5,1.1118]
[1743731833429,1.4822,1799.7,1799.2,8.70722612]
[1743731833641,3.2078,1800.1,1799.9,1.11155]
[1743731833938,1.11145,1800.2,1799.7,4.244]
[1743731834135,1.4822,1800.1,1799.8,1.11165]
[1743731834334,0.00833518,1800.2,1799.7,7.4518]
[1743731834639,1.49053518,1800.2,1799.7,7.4518]
[1743731835032,1.49053518,1800.2,1800.1,1.11147]
[1743731835232,0.00833518,1800.2,1800.1,4.31927]
[1743731835531,0.00833518,1800.2,1799.7,2.77914]
[1743731835532,2.50833518,1800.2,1799.7,3.2078]
[1743731835741,3.2078,1800.0,1799.7,1.11168]
[1743731835931,3.2078,1800.0,1799.4,4.6997]
[1743731835932,5.7305,1799.9,1799.4,4.6997]
[1743731836132,5.7305,1799.9,1799.2,3.2078]
[1743731836334,3.2078,1799.8,1799.1,1.11205]
[1743731836539,1.11183,1799.6,1799.3,1.11192]
[1743731836733,1.4485,1799.5,1799.3,1.11192]
[1743731837039,1.11208,1799.1,1799.0,3.2078]
[1743731837336,2.78053,1798.9,1797.7,3.2078]
[1743731837535,3.2078,1798.6,1797.9,2.78207]
[1743731837732,4.387,1798.5,1797.8,3.20778499]
[1743731837932,3.2078,1798.2,1797.9,3.20778499]
[1743731838132,1.4485,1798.1,1797.9,3.20778499]
[1743731838335,2.08646,1798.0,1797.9,1.11283]
[1743731838636,0.00833518,1798.1,1797.8,3.2078]
[1743731838838,0.00833518,1798.1,1798.0,1.11276]
[1743731839047,1.488,1798.5,1798.0,4.32056]
[1743731839338,8.74809,1798.8,1798.4,3.2078]
[1743731839534,7.6358,1798.8,1798.4,4.32029]
[1743731839731,7.6358,1798.8,1798.1,3.2078]
[1743731839732,7.456,1798.7,1798.1,3.2078]
[1743731839927,7.456,1798.7,1797.0,5.97]
[1743731839928,3.2078,1798.5,1797.7,3.2078]
[1743731840133,1.11289,1797.8,1797.7,3.2078]
[1743731840335,4.494,1797.8,1797.0,3.9518]
[1743731840536,1.488,1797.7,1797.6,0.00833518]
[1743731840837,4.51,1798.1,1797.6,3.21613518]
[1743731841037,0.00833518,1797.8,1797.6,0.00833518]
[1743731841426,0.00833518,1797.8,1797.6,1.12132518]
[1743731841638,0.00833518,1797.8,1797.7,4.32075]
[1743731841837,9.1758,1799.1,1797.7,9.1543]
[1743731842034,3.2078,1798.9,1798.1,3.2078]
[1743731842229,2.78099,1798.6,1797.9,3.2078]
[1743731842434,3.2078,1798.4,1797.6,3.21613518]
[1743731842637,3.2078,1798.1,1797.6,3.21613518]
[1743731842837,1.11284,1797.9,1797.6,0.00833518]
[1743731843032,1.11295,1797.7,1797.6,0.00833518]
[1743731843338,1.4223,1797.8,1797.7,1.11295]
[1743731843532,0.00833518,1798.0,1797.9,1.11283]
[1743731843737,0.00833518,1798.0,1797.7,4.6183]